fUST/lending_fUST_20240902
["ID","MTS","AMOUNT","RATE_DAILY","PERIOD"]
[336870601,1725221450838,-500.0,0.00025203,2]
[336870602,1725221450849,-500.0,0.00025203,2]
[336870603,1725221450860,-500.0,0.00025203,2]
[336870604,1725221450871,-500.0,0.00025203,2]
[336870605,1725221450883,-500.0,0.00025204,2]
[336870606,1725221450895,-263.14957392,0.00025204,2]
[336870607,1725221450907,-1884.93,0.00025204,2]
[336870608,1725221450917,-1884.93,0.00025204,2]
[336870609,1725221450928,-1884.93,0.00025204,2]
[336870610,1725221450940,-1884.93,0.00025204,2]
[336870611,1725221450951,-1884.93,0.00025204,2]
[336870612,1725221450962,-1884.93,0.00025204,2]
[336870613,1725221450972,-1885.15748006,0.00025204,2]
[336870614,1725221450982,-500.0,0.00025204,2]
[336870615,1725221450991,-541.19435553,0.00025204,2]
[336870616,1725221451001,-503.56710317,0.00025205,2]
[336870617,1725221451010,-500.0,0.00025205,2]
[336870618,1725221451020,-500.0,0.00025205,2]
[336870619,1725221451031,-500.0,0.00025205,2]
[336870620,1725221451041,-500.0,0.00025205,2]
[336870621,1725221451051,-500.0,0.00025205,2]
[336870622,1725221451060,-501.59387068,0.00025205,2]
[336870623,1725221451070,-500.0,0.00025205,2]
[336870624,1725221451079,-500.0,0.00025205,2]
[336870625,1725221451090,-500.0,0.00025205,2]
[336870626,1725221451100,-500.0,0.00025205,2]
[336870627,1725221451110,-500.0,0.00025205,2]
[336870628,1725221451119,-500.0,0.00025205,2]
[336870629,1725221451129,-726.06,0.00025205,2]
[336870630,1725221451138,-500.0,0.00025205,2]
[336870631,1725221451148,-629.14,0.00025205,2]
[336870632,1725221451157,-500.0,0.00025205,2]
[336870633,1725221451167,-500.0,0.00025205,2]
[336870634,1725221451176,-500.0,0.00025205,2]
[336870635,1725221451186,-525.37,0.00025205,2]
[336870636,1725221451195,-500.0,0.00025205,2]
[336870637,1725221451205,-500.0,0.00025205,2]
[336870638,1725221451215,-669.19,0.00025205,2]
[336870639,1725221451224,-500.0,0.00025205,2]
[336870640,1725221451233,-500.0,0.00025205,2]
[336870641,1725221451244,-638.19648141,0.00025205,2]
[336870642,1725221451253,-500.0,0.00025205,2]
[336870643,1725221451263,-602.91,0.00025205,2]
[336870644,1725221451272,-588.13,0.00025205,2]
[336870645,1725221451282,-500.0,0.00025205,2]
[336870646,1725221451292,-500.0,0.00025205,2]
[336870647,1725221451302,-500.0,0.00025205,2]
[336870648,1725221451312,-500.0,0.00025205,2]
[336870649,1725221451322,-500.0,0.00025205,2]
[336870650,1725221451332,-500.0,0.00025205,2]
[336870651,1725221451342,-500.0,0.00025205,2]
[336870652,1725221451352,-500.0,0.00025205,2]
[336870653,1725221451362,-500.0,0.00025205,2]
[336870654,1725221451376,-70.60202534,0.00025205,2]
[336870655,1725221451737,-180.18334512,0.00025205,2]
[336870656,1725221451969,-500.0,0.00024657,2]
[336870657,1725221451979,-565.48646795,0.00025205,2]
[336870658,1725221451988,-500.0,0.00025205,2]
[336870659,1725221451999,-500.0,0.00025205,2]
[336870660,1725221452009,-500.0,0.00025205,2]
[336870661,1725221452019,-500.0,0.00025205,2]
[336870662,1725221452030,-500.0,0.00025205,2]
[336870663,1725221452039,-500.0,0.00025205,2]
[336870664,1725221452049,-500.0,0.00025205,2]
[336870665,1725221452059,-932.78,0.00025205,2]
[336870666,1725221452069,-500.0,0.00025205,2]
[336870667,1725221452079,-500.0,0.00025205,2]
[336870668,1725221452089,-743.62,0.00025205,2]
[336870669,1725221452099,-500.0,0.00025205,2]
[336870670,1725221452109,-500.0,0.00025205,2]
[336870671,1725221452119,-826.14,0.00025205,2]
[336870672,1725221452128,-526.25,0.00025205,2]
[336870673,1725221452138,-500.0,0.00025205,2]
[336870674,1725221452148,-507.05321203,0.00025205,2]
[336870675,1725221452157,-580.39382741,0.00025205,2]
[336870676,1725221452167,-500.0,0.00025205,2]
[336870677,1725221452176,-500.0,0.00025205,2]
[336870678,1725221452186,-527.94596193,0.00025205,2]
[336870679,1725221452195,-500.0,0.00025205,2]
[336870680,1725221452205,-500.0,0.00025205,2]
[336870681,1725221452215,-500.0,0.00025205,2]
[336870682,1725221452224,-500.0,0.00025205,2]
[336870683,1725221452234,-500.0,0.00025205,2]
[336870684,1725221452243,-500.0,0.00025205,2]
[336870685,1725221452253,-500.0,0.00025205,2]
[336870686,1725221452262,-500.0,0.00025205,2]
[336870687,1725221452272,-500.0,0.00025205,2]
[336870688,1725221452281,-500.0,0.00025205,2]
[336870689,1725221452291,-500.0,0.00025205,2]
[336870690,1725221452301,-708.06,0.00025205,2]
[336870691,1725221452310,-500.0,0.00025205,2]
[336870692,1725221452321,-867.45,0.00025205,2]
[336870693,1725221452331,-500.0,0.00025205,2]
[336870694,1725221452341,-500.0,0.00025205,2]
[336870695,1725221452350,-500.0,0.00025205,2]
[336870696,1725221452360,-500.0,0.00025205,2]
[336870697,1725221452374,-500.0,0.00025205,2]
[336870698,1725221452383,-4097.09,0.00025205,2]
[336870699,1725221452392,-500.0,0.00025205,2]
[336870700,1725221452402,-500.0,0.00025205,2]
[336870701,1725221452412,-500.0,0.00025205,2]
[336870702,1725221452422,-500.0,0.00025205,2]
[336870703,1725221452431,-506.87810962,0.00025205,2]
[336870704,1725221452442,-500.0,0.00025205,2]
[336870705,1725221452451,-497.34361056,0.00025205,2]
[336870706,1725221452461,-500.0,0.00025205,2]
[336870707,1725221452471,-500.0,0.00025205,2]
[336870708,1725221452480,-500.0,0.00025205,2]
[336870709,1725221452490,-500.0,0.00025205,2]
[336870710,1725221452499,-500.0,0.00025205,2]
[336870711,1725221452509,-500.0,0.00025205,2]
[336870712,1725221452519,-500.0,0.00025205,2]
[336870713,1725221452528,-500.0,0.00025205,2]
[336870714,1725221452538,-500.0,0.00025205,2]
[336870715,1725221452547,-1450.26,0.00025205,2]
[336870716,1725221452557,-500.0,0.00025205,2]
[336870717,1725221452566,-500.0,0.00025205,2]
[336870718,1725221452576,-500.0,0.00025205,2]
[336870719,1725221452585,-500.0,0.00025205,2]
[336870720,1725221452595,-500.0,0.00025205,2]
[336870721,1725221452605,-500.0,0.00025205,2]
[336870722,1725221452614,-500.0,0.00025205,2]
[336870723,1725221452623,-596.57,0.00025205,2]
[336870724,1725221452632,-161.511001,0.00025205,7]
[336870725,1725221452642,-500.0,0.00025205,2]
[336870726,1725221452651,-500.0,0.00025205,2]
[336870727,1725221452661,-500.0,0.00025205,2]
[336870728,1725221452670,-500.0,0.00025205,2]
[336870729,1725221452680,-500.0,0.00025205,2]
[336870730,1725221452689,-500.0,0.00025205,2]
[336870731,1725221452699,-500.0,0.00025205,2]
[336870732,1725221452708,-500.0,0.00025205,2]
[336870733,1725221452718,-500.0,0.00025205,2]
[336870734,1725221452727,-500.0,0.00025205,2]
[336870735,1725221452737,-696.49,0.00025205,2]
[336870736,1725221452746,-500.0,0.00025205,2]
[336870737,1725221452756,-500.0,0.00025205,2]
[336870738,1725221452766,-500.0,0.00025205,2]
[336870739,1725221452775,-537.76895376,0.00025205,2]
[336870740,1725221452784,-557.99,0.00025205,2]
[336870741,1725221452793,-500.0,0.00025205,2]
[336870742,1725221452802,-473.71017254,0.00025205,2]
[336870743,1725221452811,-500.0,0.00025205,2]
[336870744,1725221452820,-607.28,0.00025205,2]
[336870745,1725221452830,-500.0,0.00025205,2]
[336870746,1725221452839,-500.0,0.00025205,2]
[336870747,1725221452849,-500.0,0.00025205,2]
[336870748,1725221452861,-500.0,0.00025205,2]
[336870749,1725221452871,-500.0,0.00025205,2]
[336870750,1725221452880,-500.0,0.00025205,2]
[336870751,1725221452890,-414.72557276,0.00025205,2]
[336870752,1725221452899,-771.11,0.00025205,2]
[336870753,1725221452909,-1775.25,0.00025205,2]
[336870754,1725221452918,-500.0,0.00025205,2]
[336870755,1725221452929,-2239.26,0.00025205,2]
[336870756,1725221452939,-500.0,0.00025205,2]
[336870757,1725221452951,-500.0,0.00025205,2]
[336870758,1725221452962,-775.26,0.00025205,2]
[336870759,1725221452971,-500.0,0.00025205,2]
[336870760,1725221452981,-500.0,0.00025205,2]
[336870761,1725221452990,-500.0,0.00025205,2]
[336870762,1725221453000,-804.01,0.00025205,2]
[336870763,1725221453009,-500.0,0.00025205,2]
[336870764,1725221453019,-500.0,0.00025205,2]
[336870765,1725221453029,-288.97975478,0.00025205,2]
[336870766,1725221453040,-1126.8,0.00025205,2]
[336870767,1725221453050,-500.0,0.00025205,2]
[336870768,1725221453061,-500.0,0.00025205,2]
[336870769,1725221453070,-500.0,0.00025205,2]
[336870770,1725221453080,-500.0,0.00025205,2]
[336870771,1725221453090,-732.64,0.00025205,2]
[336870772,1725221453099,-500.0,0.00025205,2]
[336870773,1725221453109,-500.0,0.00025205,2]
[336870774,1725221453118,-1034.02,0.00025205,2]
[336870775,1725221453128,-500.0,0.00025205,2]
[336870776,1725221453137,-500.0,0.00025205,2]
[336870777,1725221453146,-1065.51,0.00025205,2]
[336870778,1725221453156,-500.0,0.00025205,2]
[336870779,1725221453166,-500.0,0.00025205,2]
[336870780,1725221453175,-500.0,0.00025205,2]
[336870781,1725221453185,-500.0,0.00025205,2]
[336870782,1725221453194,-861.53,0.00025205,2]
[336870783,1725221453204,-500.0,0.00025205,2]
[336870784,1725221453213,-500.0,0.00025205,2]
[336870785,1725221453222,-568.69,0.00025205,2]
[336870786,1725221453232,-770.89,0.00025205,2]
[336870787,1725221453241,-500.0,0.00025205,2]
[336870788,1725221453252,-500.0,0.00025205,2]
[336870789,1725221453261,-500.0,0.00025205,2]
[336870790,1725221453271,-875.86,0.00025205,2]
[336870791,1725221453281,-1002.3,0.00025205,2]
[336870792,1725221453291,-500.0,0.00025205,2]
[336870793,1725221453301,-650.83,0.00025205,2]
[336870794,1725221453311,-500.0,0.00025205,2]
[336870795,1725221453320,-500.0,0.00025205,2]
[336870796,1725221453330,-416.61689695,0.00025205,2]
[336870797,1725221453340,-500.0,0.00025205,2]
[336870798,1725221453349,-733.2,0.00025205,2]
[336870799,1725221453359,-500.0,0.00025205,2]
[336870800,1725221453372,-500.0,0.00025205,2]
[336870801,1725221453382,-1330.05,0.00025205,2]
[336870802,1725221453391,-500.0,0.00025205,2]
[336870803,1725221453401,-500.0,0.00025205,2]
[336870804,1725221453413,-500.0,0.00025205,2]
[336870805,1725221453422,-500.0,0.00025205,2]
[336870806,1725221453432,-500.0,0.00025205,2]
[336870807,1725221453442,-1571.19,0.00025205,2]
[336870808,1725221453452,-500.0,0.00025205,2]
[336870809,1725221453461,-500.0,0.00025205,2]
[336870810,1725221453470,-500.0,0.00025205,2]
[336870811,1725221453480,-500.0,0.00025205,2]
[336870812,1725221453489,-500.0,0.00025205,2]
[336870813,1725221453501,-1765.6,0.00025205,2]
[336870814,1725221453511,-500.0,0.00025205,2]
[336870815,1725221453521,-500.0,0.00025205,2]
[336870816,1725221453530,-500.0,0.00025205,2]
[336870817,1725221453540,-500.0,0.00025205,2]
[336870818,1725221453550,-795.14,0.00025205,2]
[336870819,1725221453559,-2304.22,0.00025205,2]
[336870820,1725221453569,-500.0,0.00025205,2]
[336870821,1725221453579,-247.901188,0.00025205,2]
[336870822,1725221453588,-500.0,0.00025205,2]
[336870823,1725221453598,-596.63,0.00025205,2]
[336870824,1725221453608,-2010.43,0.00025205,2]
[336870825,1725221453618,-500.0,0.00025205,2]
[336870826,1725221453628,-500.0,0.00025205,2]
[336870827,1725221453637,-500.0,0.00025205,2]
[336870828,1725221453647,-500.0,0.00025205,2]
[336870829,1725221453657,-500.0,0.00025205,2]
[336870830,1725221453667,-500.0,0.00025205,2]
[336870831,1725221453677,-500.0,0.00025205,2]
[336870832,1725221453687,-500.0,0.00025205,2]
[336870833,1725221453697,-500.0,0.00025205,2]
[336870834,1725221453707,-500.0,0.00025205,2]
[336870835,1725221453716,-500.0,0.00025205,2]
[336870836,1725221453727,-2263.82,0.00025205,2]
[336870837,1725221453736,-500.0,0.00025205,2]
[336870838,1725221453750,-500.0,0.00025205,2]
[336870839,1725221453760,-500.0,0.00025205,2]
[336870840,1725221453770,-717.92,0.00025205,2]
[336870841,1725221453780,-2148.37,0.00025205,2]
[336870842,1725221453789,-3110.39,0.00025205,2]
[336870843,1725221453912,-500.0,0.00025205,2]
[336870844,1725221453922,-500.0,0.00025205,2]
[336870845,1725221453932,-420.25974606,0.00025205,2]
[336870846,1725221453942,-500.0,0.00025205,2]
[336870847,1725221453952,-1986.33,0.00025205,2]
[336870848,1725221453962,-500.0,0.00025205,2]
[336870849,1725221453971,-500.0,0.00025205,2]
[336870850,1725221453981,-1749.24,0.00025205,2]
[336870851,1725221453990,-500.0,0.00025205,2]
[336870852,1725221454003,-603.14385645,0.00025205,2]
[336870853,1725221454012,-955.41,0.00025205,2]
[336870854,1725221454024,-729.89,0.00025205,2]
[336870855,1725221454033,-500.0,0.00025205,2]
[336870856,1725221454043,-500.0,0.00025205,2]
[336870857,1725221454052,-500.0,0.00025205,2]
[336870858,1725221454062,-1414.5,0.00025205,2]
[336870859,1725221454071,-500.0,0.00025205,2]
[336870860,1725221454081,-500.0,0.00025205,2]
[336870861,1725221454091,-500.0,0.00025205,2]
[336870862,1725221454100,-500.0,0.00025205,2]
[336870863,1725221454110,-2912.8,0.00025205,2]
[336870864,1725221454120,-500.0,0.00025205,2]
[336870865,1725221454129,-500.0,0.00025205,2]
[336870866,1725221454138,-747.76,0.00025205,2]
[336870867,1725221454147,-500.0,0.00025205,2]
[336870868,1725221454157,-14303.52,0.00025205,2]
[336870869,1725221454167,-711.24,0.00025205,2]
[336870870,1725221454177,-500.0,0.00025205,2]
[336870871,1725221454186,-500.0,0.00025205,2]
[336870872,1725221454196,-1078.76,0.00025205,2]
[336870873,1725221454206,-842.64,0.00025205,2]
[336870874,1725221454216,-1783.4,0.00025205,2]
[336870875,1725221454226,-500.0,0.00025205,2]
[336870876,1725221454235,-1630.76,0.00025205,2]
[336870877,1725221454247,-512.17694907,0.00025205,2]
[336870878,1725221454259,-357.55163027,0.00025205,2]
[336870879,1725221454269,-2448.54,0.00025205,2]
[336870880,1725221454279,-500.0,0.00025205,2]
[336870881,1725221454288,-500.0,0.00025205,2]
[336870882,1725221454297,-1088.52,0.00025205,2]
[336870883,1725221454307,-626.36,0.00025205,2]
[336870884,1725221454317,-500.0,0.00025205,2]
[336870885,1725221454326,-500.0,0.00025205,2]
[336870886,1725221454336,-500.0,0.00025205,2]
[336870887,1725221454346,-3166.18,0.00025205,2]
[336870888,1725221454355,-1494.38,0.00025205,2]
[336870889,1725221454368,-500.0,0.00025205,2]
[336870890,1725221454378,-500.0,0.00025205,2]
[336870891,1725221454388,-1766.48,0.00025205,2]
[336870892,1725221454398,-500.0,0.00025205,2]
[336870893,1725221454408,-269.24649168,0.00025205,2]
[336870894,1725221454418,-500.0,0.00025205,2]
[336870895,1725221454428,-626.76,0.00025205,2]
[336870896,1725221454438,-500.0,0.00025205,2]
[336870897,1725221454449,-530.99,0.00025205,2]
[336870898,1725221454459,-2374.13,0.00025205,2]
[336870899,1725221454469,-1804.34,0.00025205,2]
[336870900,1725221454479,-500.0,0.00025205,2]
[336870901,1725221454489,-500.0,0.00025205,2]
[336870902,1725221454499,-547.9,0.00025205,2]
[336870903,1725221454508,-1026.45,0.00025205,2]
[336870904,1725221454518,-1436.26,0.00025205,2]
[336870905,1725221454527,-2634.53,0.00025205,2]
[336870906,1725221454537,-736.46,0.00025205,2]
[336870907,1725221454546,-500.0,0.00025205,2]
[336870908,1725221454556,-500.0,0.00025205,2]
[336870909,1725221454566,-500.0,0.00025205,2]
[336870910,1725221454577,-500.0,0.00025205,2]
[336870911,1725221454587,-500.0,0.00025205,2]
[336870912,1725221454597,-1599.02,0.00025205,2]
[336870913,1725221454606,-521.69064609,0.00025205,2]
[336870914,1725221454617,-1766.03,0.00025205,2]
[336870915,1725221454627,-1729.93,0.00025205,2]
[336870916,1725221454637,-500.0,0.00025205,2]
[336870917,1725221454647,-1077.65,0.00025205,2]
[336870918,1725221454656,-500.0,0.00025205,2]
[336870919,1725221454666,-500.0,0.00025205,2]
[336870920,1725221454675,-1648.2,0.00025205,2]
[336870921,1725221454685,-500.0,0.00025205,2]
[336870922,1725221454694,-1186.35,0.00025205,2]
[336870923,1725221454704,-596.483151,0.00025205,7]
[336870924,1725221454714,-511.34820436,0.00025205,2]
[336870925,1725221454723,-500.0,0.00025205,2]
[336870926,1725221454733,-508.52,0.00025205,2]
[336870927,1725221454742,-1210.09,0.00025205,2]
[336870928,1725221454753,-596.483151,0.00025205,7]
[336870929,1725221454762,-500.0,0.00025205,2]
[336870930,1725221454771,-1348.36,0.00025205,2]
[336870931,1725221454781,-678.43,0.00025205,2]
[336870932,1725221454791,-332.55119175,0.00025205,2]
[336870933,1725221454801,-1129.55,0.00025205,2]
[336870934,1725221454810,-284.92661686,0.00025205,2]
[336870935,1725221454820,-828.02,0.00025205,2]
[336870936,1725221454830,-500.0,0.00025205,2]
[336870937,1725221454840,-1327.14,0.00025205,2]
[336870938,1725221454849,-6057.72,0.00025205,2]
[336870939,1725221454859,-500.0,0.00025205,2]
[336870940,1725221454868,-546.15,0.00025205,2]
[336870941,1725221454878,-503.75109237,0.00025205,2]
[336870942,1725221454887,-500.0,0.00025205,2]
[336870943,1725221454896,-262.95464729,0.00025205,2]
[336870944,1725221454907,-475.03827179,0.00025205,2]
[336870945,1725221454917,-500.0,0.00025205,2]
[336870946,1725221454927,-725.57,0.00025205,2]
[336870947,1725221454938,-7675.38,0.00025205,2]
[336870948,1725221454948,-500.0,0.00025205,2]
[336870949,1725221454958,-1148.79,0.00025205,2]
[336870950,1725221454967,-1062.3,0.00025205,2]
[336870951,1725221454977,-748.97,0.00025205,2]
[336870952,1725221454986,-500.0,0.00025205,2]
[336870953,1725221454996,-1772.48,0.00025205,2]
[336870954,1725221455006,-1624.73,0.00025205,2]
[336870955,1725221455016,-1529.18,0.00025205,2]
[336870956,1725221455026,-500.0,0.00025205,2]
[336870957,1725221455035,-500.0,0.00025205,2]
[336870958,1725221455045,-1498.24,0.00025205,2]
[336870959,1725221455054,-500.0,0.00025205,2]
[336870960,1725221455064,-732.03,0.00025205,2]
[336870961,1725221455074,-931.0,0.00025205,2]
[336870962,1725221455083,-1839.62,0.00025205,2]
[336870963,1725221455093,-500.0,0.00025205,2]
[336870964,1725221455103,-500.0,0.00025205,2]
[336870965,1725221455112,-500.0,0.00025205,2]
[336870966,1725221455122,-500.0,0.00025205,2]
[336870967,1725221455131,-2093.63,0.00025205,2]
[336870968,1725221455141,-3271.16,0.00025205,2]
[336870969,1725221455150,-1437.72,0.00025205,2]
[336870970,1725221455159,-500.0,0.00025205,2]
[336870971,1725221455169,-500.0,0.00025205,2]
[336870972,1725221455179,-1574.33,0.00025205,2]
[336870973,1725221455189,-2206.77,0.00025205,2]
[336870974,1725221455198,-2327.32,0.00025205,2]
[336870975,1725221455208,-500.0,0.00025205,2]
[336870976,1725221455218,-583.14,0.00025205,2]
[336870977,1725221455227,-500.0,0.00025205,2]
[336870978,1725221455236,-566.25,0.00025205,2]
[336870979,1725221455246,-500.0,0.00025205,2]
[336870980,1725221455256,-1439.73,0.00025205,2]
[336870981,1725221455266,-593.55,0.00025205,2]
[336870982,1725221455275,-820.8,0.00025205,2]
[336870983,1725221455285,-500.0,0.00025205,2]
[336870984,1725221455294,-500.0,0.00025205,2]
[336870985,1725221455304,-500.0,0.00025205,2]
[336870986,1725221455313,-571.59,0.00025205,2]
[336870987,1725221455323,-1508.27,0.00025205,2]
[336870988,1725221455333,-3000.0,0.0002521,2]
[336870989,1725221455342,-3000.0,0.0002522,2]
[336870990,1725221455352,-1000.0,0.00025221,2]
[336870991,1725221455361,-308.4282264,0.00025222,2]
[336870992,1725221455375,-153.0,0.00025222,2]
[336870993,1725221455384,-306.0,0.00025222,2]
[336870994,1725221455394,-153.0,0.00025222,2]
[336870995,1725221455404,-3000.0,0.0002523,2]
[336870996,1725221455414,-228.912194,0.0002523,7]
[336870997,1725221455424,-228.912194,0.0002523,7]
[336870998,1725221455435,-3000.0,0.0002524,2]
[336870999,1725221455449,-3000.0,0.0002525,2]
[336871000,1725221455458,-3000.0,0.0002526,2]
[336871001,1725221455467,-3000.0,0.0002527,2]
[336871002,1725221455477,-150.0,0.00025273,2]
[336871003,1725221455486,-3000.0,0.0002528,2]
[336871004,1725221455496,-3000.0,0.0002529,2]
[336871005,1725221455505,-150.112233,0.000253,10]
[336871006,1725221455515,-3000.0,0.000253,2]
[336871007,1725221455525,-3000.0,0.0002531,2]
[336871008,1725221455534,-3000.0,0.0002532,2]
[336871009,1725221455544,-596.483151,0.0002532,7]
[336871010,1725221455553,-596.483151,0.0002532,7]
[336871011,1725221455563,-3000.0,0.0002533,2]
[336871012,1725221455573,-3000.0,0.0002534,2]
[336871013,1725221455583,-3000.0,0.0002535,2]
[336871014,1725221455593,-3000.0,0.0002536,2]
[336871015,1725221455602,-3000.0,0.0002537,2]
[336871016,1725221455612,-153.71,0.00025379,7]
[336871017,1725221455621,-154.68,0.00025379,7]
[336871018,1725221455631,-151.0,0.0002538,7]
[336871019,1725221455640,-151.0,0.0002538,7]
[336871020,1725221455650,-3000.0,0.0002538,2]
[336871021,1725221455660,-3000.0,0.0002539,2]
[336871022,1725221455669,-150.112233,0.000254,8]
[336871023,1725221455679,-3000.0,0.000254,2]
[336871024,1725221455689,-522.0,0.00025404,2]
[336871025,1725221455698,-150.0,0.00025404,2]
[336871026,1725221455707,-3000.0,0.0002541,2]
[336871027,1725221455717,-3000.0,0.0002542,2]
[336871028,1725221455726,-3000.0,0.0002543,2]
[336871029,1725221455736,-3000.0,0.0002544,2]
[336871030,1725221455747,-3000.0,0.0002545,2]
[336871031,1725221455756,-3000.0,0.0002546,2]
[336871032,1725221455765,-3000.0,0.0002547,2]
[336871033,1725221455774,-500.0,0.00025479,2]
[336871034,1725221455784,-510.21098087,0.00025479,2]
[336871035,1725221455794,-500.0,0.00025479,2]
[336871036,1725221455805,-500.0,0.00025479,2]
[336871037,1725221455815,-500.0,0.00025479,2]
[336871038,1725221455824,-500.0,0.00025479,2]
[336871039,1725221455834,-500.0,0.00025479,2]
[336871040,1725221455843,-500.0,0.00025479,2]
[336871041,1725221455853,-500.0,0.00025479,2]
[336871042,1725221455864,-151.0,0.00025479,7]
[336871043,1725221455873,-726.06,0.00025479,2]
[336871044,1725221455882,-500.0,0.00025479,2]
[336871045,1725221455892,-629.14,0.00025479,2]
[336871046,1725221455901,-500.0,0.00025479,2]
[336871047,1725221455911,-525.37,0.00025479,2]
[336871048,1725221455921,-500.0,0.00025479,2]
[336871049,1725221455931,-669.19,0.00025479,2]
[336871050,1725221455940,-500.0,0.00025479,2]
[336871051,1725221455950,-602.91,0.00025479,2]
[336871052,1725221455959,-588.13,0.00025479,2]
[336871053,1725221455968,-500.0,0.00025479,2]
[336871054,1725221455978,-500.0,0.00025479,2]
[336871055,1725221455987,-500.0,0.00025479,2]
[336871056,1725221456103,-151.0,0.00025479,7]
[336871057,1725221456113,-500.0,0.00025479,2]
[336871058,1725221456123,-500.0,0.00025479,2]
[336871059,1725221456132,-500.0,0.00025479,2]
[336871060,1725221456143,-500.0,0.00025479,2]
[336871061,1725221456154,-500.0,0.00025479,2]
[336871062,1725221456164,-500.0,0.00025479,2]
[336871063,1725221456173,-500.0,0.00025479,2]
[336871064,1725221456183,-500.0,0.00025479,2]
[336871065,1725221456193,-151.0,0.00025479,7]
[336871066,1725221456202,-282.0,0.00025479,7]
[336871067,1725221456211,-500.0,0.00025479,2]
[336871068,1725221456221,-500.0,0.00025479,2]
[336871069,1725221456230,-504.72649526,0.00025479,2]
[336871070,1725221456240,-932.78,0.00025479,2]
[336871071,1725221456253,-500.0,0.00025479,2]
[336871072,1725221456263,-500.0,0.00025479,2]
[336871073,1725221456272,-743.62,0.00025479,2]
[336871074,1725221456282,-500.0,0.00025479,2]
[336871075,1725221456291,-500.0,0.00025479,2]
[336871076,1725221456301,-826.14,0.00025479,2]
[336871077,1725221456310,-526.25,0.00025479,2]
[336871078,1725221456320,-500.0,0.00025479,2]
[336871079,1725221456329,-500.0,0.00025479,2]
[336871080,1725221456339,-500.0,0.00025479,2]
[336871081,1725221456349,-500.0,0.00025479,2]
[336871082,1725221456358,-500.0,0.00025479,2]
[336871083,1725221456371,-500.0,0.00025479,2]
[336871084,1725221456381,-500.0,0.00025479,2]
[336871085,1725221456390,-500.0,0.00025479,2]
[336871086,1725221456399,-500.0,0.00025479,2]
[336871087,1725221456409,-500.0,0.00025479,2]
[336871088,1725221456419,-500.0,0.00025479,2]
[336871089,1725221456428,-500.0,0.00025479,2]
[336871090,1725221456438,-500.0,0.00025479,2]
[336871091,1725221456449,-708.06,0.00025479,2]
[336871092,1725221456459,-500.0,0.00025479,2]
[336871093,1725221456468,-867.45,0.00025479,2]
[336871094,1725221456478,-500.0,0.00025479,2]
[336871095,1725221456487,-394.65511845,0.00025479,2]
[336871096,1725221456499,-500.0,0.00025479,2]
[336871097,1725221456514,-500.0,0.00025479,2]
[336871098,1725221456524,-4097.09,0.00025479,2]
[336871099,1725221456534,-500.0,0.00025479,2]
[336871100,1725221456543,-500.0,0.00025479,2]